Cogmind - Beta 15 @@@ ROGUE MODE // 2025.10.10 @ 09:12:21 Player: Tereza Result: Destroyed by G-67 Veteran with Field Laser Performance ------------- Evolutions (5) 2500 Regions Visited (14) 2800 Robots Destroyed (176) 880 Value Destroyed (5180) 5180 Prototype IDs (26) 520 Alien Tech Used (0) 0 Bonus (2483) 2483 TOTAL SCORE: 14363 Bonus ------- High Alert Combat Kills 509 Follower Combat Kills 474 Entered Garrisons 200 Acquired ECA 300 Met Warlord at Base 500 MAIN.C Attacked Warlord 500 Cogmind --------- Core Integrity 0/1000 Matter 295/300 Energy 100/100 System Corruption 0% Temperature Cool (0) Movement Core (50) Location -4/Proximity Caves Parts ------- > --- POWER (2) -------- (None) > --- PROPULSION (4) --- (None) > --- UTILITY (8) ------ Improved Signal Interpreter Advanced Melee Analysis Suite System Shield > --- WEAPON (3) ------- (None) > --- INVENTORY (5) ---- High-capacity Matter Pod (200) Encrypted Comm Array Advanced Trap Extractor (0/8) Improved Remote Datajack Peak State ------------ > --- POWER ------------ Heavy Ion Engine Light Angular Momentum Engine > --- PROPULSION ------- Armored Treads Armored Treads Armored Treads Armored Treads > --- UTILITY ---------- Armored Scrap Engine High-capacity Storage Unit Improved Sensor Array Improved Signal Interpreter Improved Hardlight Generator > --- WEAPON ----------- Enhanced Autogun Coil Gun Hypervelocity Gauss Rifle > --- INVENTORY -------- Light Treads Light Treads Light Treads Light Treads Armored Treads Armored Treads Advanced Treads High-capacity Matter Pod Core Analyzer Kinecellerator Improved Hardlight Generator Enhanced Autogun Coil Gun Heavy Machine Gun Assault Cannon Grenade Launcher Improved Datajack Remote Datajack Scythe Scythe [Rating: 71] Favorites ----------- Power Heavy Ion Engine Engine Heavy Ion Engine Power Core Light Nuclear Core Propulsion Armored Treads Treads Armored Treads Leg Makeshift Leg Wheel Wheel Flight Unit Field Propulsion Drive Utility Huge Storage Unit Device Improved Shield Generator Storage Huge Storage Unit Processor Improved Signal Interpreter Hackware Advanced Hacking Suite Protection Heavy Armor Plating Weapon Enhanced Autogun Energy Gun Medium Laser Energy Cannon Powered Cannon Ballistic Gun Enhanced Autogun Ballistic Cannon Light Cannon Launcher Grenade Launcher Slashing Weapon Chainsword Build | -11 -10 -10 -8 -8 -8 -8 -6 -6 -6 -5 -5 -5 -5 -4 ------- Run | Yrd Mat Sub Mat Gar Sto Rec Fac Was Fac Fac Upp Upp War Pro Slots Evolved 10 | . . . 4 . . . 4 . . 2 . . . . Power 1 | . . . . . . . 1 . . . . . . . Propulsion 2 | . . . 2 . . . . . . . . . . . Utility 6 | . . . 1 . . . 3 . . 2 . . . . Weapon 1 | . . . 1 . . . . . . . . . . . Parts Attached 107 | 7 3 9 22 14 7 4 25 1 . 7 2 1 1 4 Power 11 | 1 . . 3 2 1 . 2 . . 1 . . . 1 Engine 8 | 1 . . 2 1 1 . 1 . . 1 . . . 1 Core 3 | . . . 1 1 . . 1 . . . . . . . Reactor . | . . . . . . . . . . . . . . . Propulsion 31 | 2 . 3 9 4 . 1 9 . . 2 . . . 1 Treads 25 | 2 . 2 9 4 . 1 7 . . . . . . . Leg 2 | . . 1 . . . . . . . . . . . 1 Wheel 1 | . . . . . . . 1 . . . . . . . Hover . | . . . . . . . . . . . . . . . Flight 3 | . . . . . . . 1 . . 2 . . . . Utility 32 | 2 2 1 4 4 1 2 9 . . 3 1 1 1 1 Device 15 | 1 . . 3 3 1 1 5 . . . . . . 1 Storage 3 | 1 1 . . . . 1 . . . . . . . . Processor 5 | . . . . 1 . . 4 . . . . . . . Hackware 3 | . . . . . . . . . . 3 . . . . Protection 6 | . 1 1 1 . . . . . . . 1 1 1 . Artifact . | . . . . . . . . . . . . . . . Weapon 33 | 2 1 5 6 4 5 1 5 1 . 1 1 . . 1 Energy Gun 1 | 1 . . . . . . . . . . . . . . Energy Cannon 1 | . . . 1 . . . . . . . . . . . Ballistic Gun 19 | 1 . 2 4 3 5 . 4 . . . . . . . Ballistic Cannon 6 | . 1 2 1 . . . 1 . . . . . . 1 Launcher 2 | . . 1 . 1 . . . . . . . . . . Special Weapon . | . . . . . . . . . . . . . . . Impact Weapon . | . . . . . . . . . . . . . . . Slashing Weapon 4 | . . . . . . 1 . 1 . 1 1 . . . Piercing Weapon . | . . . . . . . . . . . . . . . Special Melee Weapon . | . . . . . . . . . . . . . . . Unidentified Prototypes 3 | . . . . . 1 1 1 . . . . . . . Parts Lost 60 | . . 6 5 8 1 . 30 . . . . . 1 9 Power 7 | . . 1 . 2 . . 3 . . . . . . 1 Propulsion 25 | . . 1 3 4 . . 13 . . . . . 1 3 Utility 12 | . . 2 . 1 1 . 5 . . . . . . 3 Weapon 16 | . . 2 2 1 . . 9 . . . . . . 2 Highest Loss Streak 28 | . . 4 2 4 1 . 28 . . . . . 1 8 To Critical Strikes 2 | . . . . . . . 2 . . . . . . . Average Backups 19 | 4 18 22 22 21 24 23 17 4 4 5 5 5 5 4 Power . | . 1 1 . 1 2 1 . . . . . . . . Propulsion 4 | 2 2 3 2 5 7 7 6 . . . . . . . Utility 5 | . 4 3 8 8 7 6 3 2 2 1 2 2 2 2 Weapon 7 | 1 10 12 9 5 6 6 6 . . 1 1 1 1 . Tool/Special . | . . . . . . . . . . . . . . . Unused Backups 39 | . 3 1 18 . 5 4 3 . . 2 . . . 3 Power 2 | . . . 1 . . 1 . . . . . . . . Propulsion 10 | . 2 . 3 . 3 1 1 . . . . . . . Utility 9 | . . . 5 . . 1 1 . . . . . . 2 Weapon 14 | . 1 1 8 . 2 1 1 . . . . . . . Tool/Special 4 | . . . 1 . . . . . . 2 . . . 1 Average Slot Usage (%) 89 | . 100 87 85 94 99 99 81 33 33 49 79 82 81 59 Engine 8 | . 14 7 7 5 9 9 9 . . 1 5 5 5 2 Core 1 | . . . 1 6 . . . . . . . . . . Treads 27 | . 28 27 32 34 36 36 22 . . . . . . . Flight 1 | . . . . . . . . 6 6 8 17 17 16 7 Device 9 | . 11 1 3 16 17 17 13 . . 4 5 5 5 3 Storage 8 | . 14 14 8 8 9 9 5 . . . . . . . Processor 3 | . . . . . . . 10 20 20 17 17 17 17 17 Hackware 1 | . . . . . . . . . . 9 17 17 17 14 Protection 3 | . 2 8 6 . . . . . . . 3 5 5 3 Ballistic Gun 16 | . 14 13 16 17 27 26 17 . . . . . . . Ballistic Cannon 4 | . 11 14 4 . . . . . . . . . . . Peak Build Rating 71 | 7 9 12 49 51 43 51 71 22 22 55 62 62 65 58 Average Rating 33 | 5 8 9 33 43 41 43 60 22 22 37 60 62 61 44 On Entrance 33 | . 7 9 12 49 38 43 51 19 22 22 55 62 62 52 Naked Turns . | . . . . . . . . . . . . . . . Heaviest Build 117 | 15 93 93 117 112 102 102 79 2 2 14 19 20 22 11 Greatest Support 82 | 40 40 40 82 82 80 80 82 6 6 20 20 20 20 13 Greatest Overweight (x) 14 | 1 2 8 2 1 1 1 14 . . . . . 1 2 Average Overweight (x) . | . 1 2 1 1 1 . . . . . . . . . Largest Inventory Capacity 25 | 8 25 25 25 25 25 25 20 5 5 5 5 5 5 5 Average Capacity 21 | 7 24 25 25 25 25 23 18 5 5 5 5 5 5 5 Most Carried 25 | 7 24 25 25 25 25 25 20 4 5 5 5 5 5 5 Average Carried 20 | 4 18 23 24 21 24 23 17 4 4 4 4 5 5 4 Final Capacity 25 | 8 25 25 25 25 25 20 5 5 5 5 5 5 5 5 Final Carried 25 | 6 23 25 25 21 25 20 5 4 5 5 5 5 5 4 Scrap Engine Consumption 21 | . . . . . . 5 16 . . . . . . . Constructs Created 4 | . . . . . . . 4 . . . . . . . Constructs Modified 1 | . . . . . . . 1 . . . . . . . Class Distribution -------------------- 34% | Mutant 22% | Tank 14% | Commander-Tank 9% | Scavenger-Tank 4% | Skirmisher 4% | Hacker-Mutant 3% | Commander-Skirmisher 3% | Hacker-Gladiator Dominant Class ---------------- Mutant | -10/Materials Mutant | -10/Subcaves Tank | -8/Materials Tank | -8/Garrison Tank | -8/Storage Commander-Tank | -8/Recycling Skirmisher | -6/Factory Mutant | -6/Waste Mutant | -6/Factory Hacker-Mutant | -5/Factory Hacker-Gladiator | -5/Upper Caves Hacker-Gladiator | -5/Upper Caves Hacker-Gladiator | -5/Warlord Hacker-Mutant | -4/Proximity Caves Resources | -11 -10 -10 -8 -8 -8 -8 -6 -6 -6 -5 -5 -5 -5 -4 ----------- Run | Yrd Mat Sub Mat Gar Sto Rec Fac Was Fac Fac Upp Upp War Pro Matter Collected 5646 | 240 297 562 1392 505 1063 135 922 . . 171 102 49 . 208 Remotely 72 | . . . 72 . . . . . . . . . . . Salvage Created 6628 | 27 421 220 2039 895 1310 161 1361 . . 84 45 . . 65 Parts 364 | 2 40 17 102 50 58 5 79 . . 3 4 . . 4 Haulers Intercepted 11 | . 2 . 2 . 5 . 2 . . . . . . . Recyclers Shooed 5 | . 2 . 2 . . . . . . . . . . 1 Parts Field Recycled . | . . . . . . . . . . . . . . . Retrieved Matter . | . . . . . . . . . . . . . . . Parts Self-Destructed 22 | . . 15 . . . . . . . . . . . 7 Prevented . | . . . . . . . . . . . . . . . Kills | -11 -10 -10 -8 -8 -8 -8 -6 -6 -6 -5 -5 -5 -5 -4 ------- Run | Yrd Mat Sub Mat Gar Sto Rec Fac Was Fac Fac Upp Upp War Pro Combat Hostiles Destroyed 127 | . 10 12 35 29 22 2 15 . . 1 . . . 1 Melee 2 | . . . . . . . . . . 1 . . . 1 Guns 83 | . 7 4 22 14 22 2 12 . . . . . . . Cannons 29 | . 3 5 12 8 . . 1 . . . . . . . AOE 10 | . . 3 . 5 . . 2 . . . . . . . Classes Destroyed 19 | 1 6 3 4 3 1 . . . . . 1 . . . Worker 11 | . 2 . 3 . 3 . 3 . . . . . . . Builder 7 | . 1 . 2 . . . 4 . . . . . . . Tunneler 1 | 1 . . . . . . . . . . . . . . Hauler 11 | . 2 . 2 . 5 . 2 . . . . . . . Recycler 8 | . 2 . 2 . 1 1 2 . . . . . . . Operator 2 | . . . 2 . . . . . . . . . . . Turret 2 | . . 2 . . . . . . . . . . . . Watcher 5 | . . . 4 . . . 1 . . . . . . . Swarmer 40 | . 9 7 4 14 4 . 2 . . . . . . . Grunt 41 | . 1 1 20 6 10 . 2 . . . . . . 1 Brawler 3 | . . . . 3 . . . . . . . . . . Duelist 1 | . . . 1 . . . . . . . . . . . Protector 1 | . . . . . 1 . . . . . . . . . Sentry 23 | . . 1 9 3 7 . 2 . . 1 . . . . Demolisher 1 | . . . . 1 . . . . . . . . . . Hunter 6 | . . . 1 . . . 5 . . . . . . . Programmer 9 | . . . . 3 . 1 5 . . . . . . . Subdweller 4 | . . 3 . . . 1 . . . . . . . . Samaritan 1 | . . . . . . . . . . . 1 . . . Best Kill Streak 11 | 1 3 5 9 7 9 1 11 . . 1 . . . 1 Combat Bots Only 8 | . 3 3 5 7 8 1 5 . . 1 . . . 1 Max Kills in Single Turn 5 | 1 1 1 2 5 2 1 2 . . 1 1 . . 1 Gunslinging 1 | . . . . . 1 . . . . . . . . . Exploded 3 | . . 1 . 3 . . 1 . . . . . . . Melee 1 | . . . . . . . . . . 1 . . . 1 Uniques/NPCs Destroyed . | . . . . . . . . . . . . . . . Combat | -11 -10 -10 -8 -8 -8 -8 -6 -6 -6 -5 -5 -5 -5 -4 -------- Run | Yrd Mat Sub Mat Gar Sto Rec Fac Was Fac Fac Upp Upp War Pro Hostile Shots Fired 1280 | . 37 173 138 136 126 . 555 . 2 14 . 6 6 87 Missed 363 | . 7 69 39 37 24 . 153 . 1 5 . 2 1 25 Hits 917 | . 30 104 99 99 102 . 402 . 1 9 . 4 5 62 Melee 3 | . . . 1 1 . . . . . . . . . 1 Projectile 914 | . 30 104 98 98 102 . 402 . 1 9 . 4 5 61 AOE 7 | . . . . 7 . . . . . . . . . . Critical Strikes 28 | . 1 . 3 3 7 . 9 . . . . . . 5 Part Disruptions 1 | . . . . . . . 1 . . . . . . . Damage Taken 12480 | . 247 1165 1307 1291 1269 . 5376 . 12 131 . 65 85 1532 Core 2431 | . 14 213 91 112 185 . 800 . 12 73 . . 29 902 Absorbed by Shields 1915 | . . . 162 230 387 . 1136 . . . . . . . Regen/Repaired (Parts) 43 | . . . . . . . 26 . . . . . 17 . Core Remaining (%) 35 | 100 . 9 . . . 29 . . 4 . . . . . Volleys Fired 478 | 2 38 73 122 78 78 5 80 . . . . . . 2 Largest 3 | 2 2 2 3 3 3 3 3 . . . . . . 1 Hottest 105 | 70 70 61 94 75 75 75 105 . . . . . . 44 Shots Fired 1156 | 4 76 113 323 169 231 15 223 . . . . . . 2 Gun 880 | 4 44 32 224 122 231 15 208 . . . . . . . Cannon 261 | . 32 76 99 45 . . 7 . . . . . . 2 Launcher 15 | . . 5 . 2 . . 8 . . . . . . . Special . | . . . . . . . . . . . . . . . Kinetic 1039 | 2 70 108 282 122 231 15 207 . . . . . . 2 Thermal 102 | 2 6 . 41 45 . . 8 . . . . . . . Explosive 15 | . . 5 . 2 . . 8 . . . . . . . Electromagnetic . | . . . . . . . . . . . . . . . Robot Hit Streak 15 | 1 8 7 12 8 15 9 11 . . . . . . 4 Robot Miss Streak 5 | 1 3 2 4 5 3 1 4 . . . . . . . Penetration Max 2 | . . . 1 1 . . 2 . . . . . . . Secondary Targets 10 | . . . 3 1 3 . 3 . . . . . . . Max Gunslinging Chain 1 | . . . 1 1 1 . 1 . . . . . . . Shots Hit Robots 694 | 2 47 52 188 80 158 9 139 . . 3 2 . . 14 Core Hits 318 | 1 20 23 78 38 56 5 89 . . 2 1 . . 5 Critical Kills 11 | . . . 2 2 1 . 6 . . . . . . . Critical Parts Destroyed 12 | . . . 3 1 . . 8 . . . . . . . Critical Strikes 26 | . . . 5 3 1 . 14 . . . . . . 3 Meltdown 3 | . . . 1 2 . . . . . . . . . . Destroy 20 | . . . 4 1 1 . 14 . . . . . . . Sever 3 | . . . . . . . . . . . . . . 3 Melee Attacks 70 | . . . . . . 2 10 . . 16 5 2 . 35 Impact . | . . . . . . . . . . . . . . . Slashing 70 | . . . . . . 2 10 . . 16 5 2 . 35 Piercing . | . . . . . . . . . . . . . . . Sneak Attacks 4 | . . . . . . . 1 . . . 2 . . 1 Combat Hostiles . | . . . . . . . . . . . . . . . Follow-up Attacks . | . . . . . . . . . . . . . . . Damage Inflicted 16692 | 24 759 1176 4452 2778 3072 185 3424 . . 103 151 . . 568 Guns 10121 | 24 444 333 2456 1199 3050 161 2454 . . . . . . . Cannons 4216 | . 285 522 1948 1273 . . 123 . . . . . . 65 Explosions 1398 | . . 321 . 306 . . 771 . . . . . . . Melee 819 | . . . . . . . 62 . . 103 151 . . 503 Ramming 138 | . 30 . 48 . 22 24 14 . . . . . . . Kinetic 11673 | 24 717 855 3146 1199 3050 161 2456 . . . . . . 65 Thermal 2664 | . 12 . 1258 1273 . . 121 . . . . . . . Explosive 1398 | . . 321 . 306 . . 771 . . . . . . . Electromagnetic . | . . . . . . . . . . . . . . . Impact . | . . . . . . . . . . . . . . . Slashing 819 | . . . . . . . 62 . . 103 151 . . 503 Piercing . | . . . . . . . . . . . . . . . Highest Corruption 13 | . 1 1 . 1 2 2 4 13 13 . . . . . Average Corruption 1 | . 1 1 . 1 1 2 3 9 13 . . . . . Corruption Purged . | . . . . . . . . . . . . . . . Corruption Blocked . | . . . . . . . . . . . . . . . Effects 78 | . 4 15 . 6 14 25 8 4 2 . . . . . Message Errors 20 | . 3 3 . 1 2 8 2 . 1 . . . . . Matter Fused 8 | . . 3 . 1 1 2 1 . . . . . . . Heat Flow Errors 15 | . . 4 . 2 2 5 . 1 1 . . . . . Energy Discharges 11 | . 1 2 . 1 . 4 3 . . . . . . . Parts Rejected 2 | . . . . . 1 . 1 . . . . . . . Data Loss (minor) 9 | . . 1 . . 3 4 1 . . . . . . . Data Loss (major) 6 | . . 2 . 1 1 2 . . . . . . . . Misfires 1 | . . . . . 1 . . . . . . . . . Alerts 2 | . . . . . 1 . . 1 . . . . . . Misdirections 2 | . . . . . . . . 2 . . . . . . Weapon Failures 2 | . . . . . 2 . . . . . . . . . Overload Shots . | . . . . . . . . . . . . . . . Overflow Damage 509 | . . 49 167 176 . 9 22 . . . 80 . . 6 Projectiles 352 | . . 14 167 171 . . . . . . . . . . Explosions 40 | . . 35 . 5 . . . . . . . . . . Melee 117 | . . . . . . 9 22 . . . 80 . . 6 Knockbacks 19 | . 1 6 9 . . 1 2 . . . . . . . Impact 2 | . . . 1 . . 1 . . . . . . . . Kinetic 17 | . 1 6 8 . . . 2 . . . . . . . Secondary . | . . . . . . . . . . . . . . . Self-Inflicted Damage 103 | . . 43 . 60 . . . . . . . . . . Shots 4 | . . 2 . 2 . . . . . . . . . . Rammed 18 | . 3 . 5 . 7 2 1 . . . . . . . Targets Rammed 20 | . 4 . 5 . 7 2 2 . . . . . . . Kicked . | . . . . . . . . . . . . . . . Crushed 2 | . 1 . . . . . 1 . . . . . . . Highest Temperature 413 | 18 27 178 413 257 237 245 328 111 251 . . . . . Average Temperature 69 | 10 11 72 68 39 50 107 81 74 140 . . . . . Received Heat Transfer 2602 | . 12 411 604 147 660 . 484 . . 9 . . . 275 Effects 1 | . . . 1 . . . . . . . . . . . Energy Bleed 1 | . . . 1 . . . . . . . . . . . Siege Activations . | . . . . . . . . . . . . . . . Martial Activations . | . . . . . . . . . . . . . . . Shielding Activations . | . . . . . . . . . . . . . . . Robots Disrupted . | . . . . . . . . . . . . . . . Combat Hostiles . | . . . . . . . . . . . . . . . Robots Corrupted 1 | . . . . . . 1 . . . . . . . . Combat Hostiles . | . . . . . . . . . . . . . . . Parts Fried . | . . . . . . . . . . . . . . . Impact Corruptions 1 | . . . . . . 1 . . . . . . . . Robots Melted 3 | . . . 1 2 . . . . . . . . . . Combat Hostiles 3 | . . . 1 2 . . . . . . . . . . Parts Melted 5 | . . . 1 3 . . 1 . . . . . . . Heat Transferred 37 | . 37 . . . . . . . . . . . . . Parts Sabotaged . | . . . . . . . . . . . . . . . Parts Stolen . | . . . . . . . . . . . . . . . Parts Stripped . | . . . . . . . . . . . . . . . Power Chain Reactions . | . . . . . . . . . . . . . . . Alert | -11 -10 -10 -8 -8 -8 -8 -6 -6 -6 -5 -5 -5 -5 -4 ------- Run | Yrd Mat Sub Mat Gar Sto Rec Fac Was Fac Fac Upp Upp War Pro Maximum Alert Level 3 | . . . 2 3 3 2 1 . . . . . . . Low Security (%) 62 | 100 100 . 74 4 . 77 84 100 100 100 . . . . Level 1 10 | . . . 12 16 . 21 15 . . . . . . . Level 2 14 | . . . 12 40 46 1 . . . . . . . . Level 3 12 | . . . . 38 53 . . . . . . . . . Level 4 . | . . . . . . . . . . . . . . . Level 5 . | . . . . . . . . . . . . . . . High Security . | . . . . . . . . . . . . . . . Max Security . | . . . . . . . . . . . . . . . Peak Influence 1054 | 5 73 . 506 1054 1046 401 265 71 35 45 . . . . Initial 513 | . . . . 194 513 401 200 71 35 7 . . . . Average 244 | . 20 . 128 676 687 80 96 65 25 8 . . . . Influence Increases 5248 | 5 323 275 1132 940 1041 290 990 . . 112 . . . 140 Destroy 0b10 Robot/C 2740 | . 200 220 700 580 560 80 360 . . 20 . . . 20 Destroy 0b10 Robot/NC 255 | 5 35 . 75 . 70 10 60 . . . . . . . Destroy Leader 536 | . 34 10 182 20 184 . 96 . . 10 . . . . Allied During Kill 272 | . . . . 2 203 36 31 . . . . . . . Successful Hack 127 | . 39 . 53 . 7 28 . . . . . . . . Select Force Hacks 120 | . . . . . . 120 . . . . . . . . Disable Machine 165 | . 15 . 60 30 15 15 15 . . 15 . . . . Anti-Garrison Action 250 | . . . . 250 . . . . . . . . . . Destroy Structure 133 | . . . 32 43 2 1 33 . . 22 . . . . Advance Influence 200 | . . . . . . . 200 . . . . . . . Partial Spotted 30 | . . . . . . . 15 . . 15 . . . . Lose Combat Pursuer 420 | . . 45 30 15 . . 180 . . 30 . . . 120 Influence Decreases 5162 | 5 323 275 833 185 1065 1320 786 153 36 127 . . . 54 Entered New Map 1432 | . . . . 105 541 629 . 133 16 8 . . . . Time Decay 2688 | 5 323 235 491 . 514 461 466 20 20 119 . . . 34 Lost Part 492 | . . 40 42 80 10 . 300 . . . . . . 20 Lost Ally 100 | . . . . . . 80 20 . . . . . . . Purge Threat 450 | . . . 300 . . 150 . . . . . . . . Squads Dispatched 21 | . . . 7 . 5 . 8 . . 1 . . . . Investigation 2 | . . . 2 . . . . . . . . . . . Extermination 4 | . . . . . . . 3 . . 1 . . . . Reinforcement 8 | . . . 2 . 2 . 4 . . . . . . . Assault 1 | . . . . . 1 . . . . . . . . . Garrison 6 | . . . 3 . 2 . 1 . . . . . . . Intercept . | . . . . . . . . . . . . . . . Searches Triggered . | . . . . . . . . . . . . . . . Construction Impeded 4 | . . . 1 . . . 3 . . . . . . . Haulers Reinforced 1 | . . . . . . . 1 . . . . . . . Active Scanning Responses . | . . . . . . . . . . . . . . . Cargo Convoy Interrupts 1 | . . . . . . . 1 . . . . . . . Stealth | -11 -10 -10 -8 -8 -8 -8 -6 -6 -6 -5 -5 -5 -5 -4 --------- Run | Yrd Mat Sub Mat Gar Sto Rec Fac Was Fac Fac Upp Upp War Pro Distress Signals 13 | . . . 6 . 3 3 1 . . . . . . . Communications Jammed . | . . . . . . . . . . . . . . . Distress Signals . | . . . . . . . . . . . . . . . Times Spotted 236 | . 19 14 53 34 32 5 48 4 3 3 . 2 2 17 Peak Tracking Total 16 | . 3 5 5 7 5 1 16 4 3 2 . 2 8 10 Tactical Retreats 14 | . . 1 2 1 . . 5 . . 1 . . . 4 Traps | -11 -10 -10 -8 -8 -8 -8 -6 -6 -6 -5 -5 -5 -5 -4 ------- Run | Yrd Mat Sub Mat Gar Sto Rec Fac Was Fac Fac Upp Upp War Pro Traps Triggered 16 | . . 1 3 8 1 . 2 . . 1 . . . . Indirectly . | . . . . . . . . . . . . . . . Trap Hack Attempts . | . . . . . . . . . . . . . . . Triggered . | . . . . . . . . . . . . . . . Disarmed . | . . . . . . . . . . . . . . . Reprogrammed . | . . . . . . . . . . . . . . . Reused . | . . . . . . . . . . . . . . . Traps Extracted . | . . . . . . . . . . . . . . . Installed 1 | . . . 1 . . . . . . . . . . . Triggered . | . . . . . . . . . . . . . . . Most Traps Carried 2 | . . 2 2 . . . . . . . . . . . Machines | -11 -10 -10 -8 -8 -8 -8 -6 -6 -6 -5 -5 -5 -5 -4 ---------- Run | Yrd Mat Sub Mat Gar Sto Rec Fac Was Fac Fac Upp Upp War Pro Machines Disabled 15 | . 1 3 4 3 1 1 1 . . 1 . . . . Max in Single Turn 1 | . 1 1 1 1 1 1 1 . . 1 . . . . Garrison Access 1 | . . . . . 1 . . . . . . . . . Machines Repaired . | . . . . . . . . . . . . . . . Machines Dismantled . | . . . . . . . . . . . . . . . Machines Sabotaged . | . . . . . . . . . . . . . . . Overloaded Fab Kills . | . . . . . . . . . . . . . . . Hacking | -11 -10 -10 -8 -8 -8 -8 -6 -6 -6 -5 -5 -5 -5 -4 --------- Run | Yrd Mat Sub Mat Gar Sto Rec Fac Was Fac Fac Upp Upp War Pro Machines Accessed 65 | . 8 1 11 3 10 13 5 . 2 7 . . 4 1 Terminals 44 | . 7 . 9 3 8 6 4 . 2 4 . . . 1 Fabricators 2 | . . . . . . . 1 . . 1 . . . . Repair Stations . | . . . . . . . . . . . . . . . Recycling Units 9 | . 1 . 1 . 1 5 . . . 1 . . . . Scanalyzers . | . . . . . . . . . . . . . . . Garrison Access 3 | . . . 1 . 1 . . . . 1 . . . . Total Hacks 141 | . 22 1 37 8 15 26 9 . 3 14 . . 5 1 Successful 73 | . 11 1 21 . 9 18 3 . . 4 . . 5 1 Failed 67 | . 11 . 15 8 6 8 6 . 3 10 . . . . Catastrophic 13 | . 1 . 1 3 2 1 4 . . 1 . . . . Database Lockouts 1 | . . . 1 . . . . . . . . . . . Manual 56 | . 14 . 16 . 5 16 . . 1 4 . . . . Terminals 109 | . 21 . 33 8 13 14 8 . 3 8 . . . 1 Fabricators 2 | . . . . . . . 1 . . 1 . . . . Repair Stations . | . . . . . . . . . . . . . . . Recycling Units 16 | . 1 . 3 . 1 7 . . . 4 . . . . Scanalyzers . | . . . . . . . . . . . . . . . Garrison Access 3 | . . . 1 . 1 . . . . 1 . . . . Terminal Hacks 49 | . 9 1 13 . 7 11 2 . . . . . 5 1 Record 6 | . . . . . . 3 . . . . . . 3 . Part Schematic 1 | . . . . . . 1 . . . . . . . . Robot Analysis 7 | . 5 . 2 . . . . . . . . . . . Prototype ID Bank 6 | . 3 . 3 . . . . . . . . . . . Open Door 6 | . . . . . 3 . . . . . . . 2 1 Terminal Index 1 | . . . . . 1 . . . . . . . . . Alert Level 7 | . . . 2 . 2 2 1 . . . . . . . Unreport Threat 3 | . . . 2 . . 1 . . . . . . . . Locate Traps 4 | . . . 2 . 1 . 1 . . . . . . . Hauler Manifests 3 | . 1 . 1 . . 1 . . . . . . . . Zone Layout 2 | . . . 1 . . 1 . . . . . . . . Proto ID Catalog 1 | . . 1 . . . . . . . . . . . . Release Object 2 | . . . . . . 2 . . . . . . . . Fabricator Hacks 2 | . . . . . . . 1 . . 1 . . . . Network Status 2 | . . . . . . . 1 . . 1 . . . . Repair Station Hacks . | . . . . . . . . . . . . . . . Recycling Unit Hacks 9 | . 1 . 3 . 1 1 . . . 3 . . . . Process 2 | . . . 1 . . . . . . 1 . . . . Report Inventory 4 | . 1 . 1 . 1 1 . . . . . . . . Retrieve Matter 3 | . . . 1 . . . . . . 2 . . . . Scanalyzer . | . . . . . . . . . . . . . . . Garrison Access Hacks 2 | . . . 1 . 1 . . . . . . . . . Unlock Access 1 | . . . 1 . . . . . . . . . . . Seal Access 1 | . . . . . 1 . . . . . . . . . Unauthorized Hacks 11 | . 1 . 4 . . 6 . . . . . . . . Terminals 7 | . 1 . 4 . . 2 . . . . . . . . Track 1 | . . . 1 . . . . . . . . . . . Botnet 5 | . 1 . 2 . . 2 . . . . . . . . Disrupt 1 | . . . 1 . . . . . . . . . . . Fabricators . | . . . . . . . . . . . . . . . Repair Stations . | . . . . . . . . . . . . . . . Recycling Units 4 | . . . . . . 4 . . . . . . . . Tunnel 4 | . . . . . . 4 . . . . . . . . Scanalyzers . | . . . . . . . . . . . . . . . Garrison Access . | . . . . . . . . . . . . . . . Data Cores Recovered 2 | . . . 2 . . . . . . . . . . . Used . | . . . . . . . . . . . . . . . Hacking Detections 42 | . 6 . 8 3 7 6 5 . 2 5 . . . . Full Trace Events 6 | . 2 . 1 3 . . . . . . . . . . Feedback Events 1 | . 1 . . . . . . . . . . . . . Corruption 1 | . 1 . . . . . . . . . . . . . Feedback Blocked . | . . . . . . . . . . . . . . . Robot Schematics Acquired . | . . . . . . . . . . . . . . . Robots Built . | . . . . . . . . . . . . . . . Authchips . | . . . . . . . . . . . . . . . Time . | . . . . . . . . . . . . . . . Total Robot Build Rating . | . . . . . . . . . . . . . . . Part Schematics Acquired 1 | . . . . . . 1 . . . . . . . . Parts Built . | . . . . . . . . . . . . . . . Authchips . | . . . . . . . . . . . . . . . Time . | . . . . . . . . . . . . . . . Total Part Build Rating . | . . . . . . . . . . . . . . . Parts Repaired . | . . . . . . . . . . . . . . . Time . | . . . . . . . . . . . . . . . Parts Recycled . | . . . . . . . . . . . . . . . Recycled Matter 199 | . . . 73 . . . . . . 126 . . . . Retrieved Matter 199 | . . . 73 . . . . . . 126 . . . . Retrieved Components . | . . . . . . . . . . . . . . . Parts Scanalyzed . | . . . . . . . . . . . . . . . Part Schematics Acquired . | . . . . . . . . . . . . . . . Parts Damaged . | . . . . . . . . . . . . . . . Bothacking | -11 -10 -10 -8 -8 -8 -8 -6 -6 -6 -5 -5 -5 -5 -4 ------------ Run | Yrd Mat Sub Mat Gar Sto Rec Fac Was Fac Fac Upp Upp War Pro Used RIF Installer . | . . . . . . . . . . . . . . . Robots Hacked . | . . . . . . . . . . . . . . . Non-combat . | . . . . . . . . . . . . . . . Combat . | . . . . . . . . . . . . . . . Robot Hacks Applied . | . . . . . . . . . . . . . . . Relay Couplers Released 4 | . . . . . . . 4 . . . . . . . Programmers 4 | . . . . . . . 4 . . . . . . . Fabnet Peak Effective % . | . . . . . . . . . . . . . . . Robots Rewired 1 | . . . . 1 . . . . . . . . . . Allies Hacked . | . . . . . . . . . . . . . . . Hacks Repelled . | . . . . . . . . . . . . . . . Allies | -11 -10 -10 -8 -8 -8 -8 -6 -6 -6 -5 -5 -5 -5 -4 -------- Run | Yrd Mat Sub Mat Gar Sto Rec Fac Was Fac Fac Upp Upp War Pro Total Allies 11 | . . . . 1 10 . . . . . . . . . Largest Group 10 | . . . . 1 10 10 6 . . . . . . . Highest-Rated Group 173 | . . . . 10 173 173 109 . . . . . . . Highest-Rated Ally 29 | . . . . 10 29 29 29 . . . . . . . Initial Warlord ECA Mod 18 | . . . . . 4 4 2 2 2 1 1 1 1 . Total Orders . | . . . . . . . . . . . . . . . Ally Attacks 135 | . . . . 2 71 40 22 . . . . . . . Total Damage 1479 | . . . . . 832 386 261 . . . . . . . Kills 19 | . . . . . 11 5 3 . . . . . . . Allies Corrupted . | . . . . . . . . . . . . . . . Allies Melted . | . . . . . . . . . . . . . . . Intel | -11 -10 -10 -8 -8 -8 -8 -6 -6 -6 -5 -5 -5 -5 -4 ------- Run | Yrd Mat Sub Mat Gar Sto Rec Fac Was Fac Fac Upp Upp War Pro Active Infowar (turns) 4396 | 38 1582 184 . . . . 1325 . . 405 195 135 219 313 Optics 950 | . . . . . . . 950 . . . . . . . Sensors 2591 | . . . . . . . 1324 . . 405 195 135 219 313 Seismic 1804 | 38 1582 184 . . . . . . . . . . . . Robot Analysis Total 7 | . 5 . 2 . . . . . . . . . . . Derelict Logs Recovered 3 | . . 1 . . . . . . . . . 1 . 1 Drone Launches . | . . . . . . . . . . . . . . . Drone Recoveries . | . . . . . . . . . . . . . . . Exploration | -11 -10 -10 -8 -8 -8 -8 -6 -6 -6 -5 -5 -5 -5 -4 ------------- Run | Yrd Mat Sub Mat Gar Sto Rec Fac Was Fac Fac Upp Upp War Pro Turns Passed 14761 | 112 1943 2266 2457 1770 1402 1636 1632 40 53 449 195 135 219 452 Spaces Moved 8075 | 57 574 640 830 607 464 704 960 97 130 940 444 347 577 704 Core 455 | 2 . . . . . . 252 . . 1 . . . 200 Treads 4549 | 55 574 639 830 607 464 704 676 . . . . . . . Legs 1 | . . 1 . . . . . . . . . . . . Wheels 1 | . . . . . . . 1 . . . . . . . Hover . | . . . . . . . . . . . . . . . Flight 3069 | . . . . . . . 31 97 130 939 444 347 577 504 Fastest Speed 37 | 50 160 320 238 238 250 170 40 40 40 37 37 37 37 39 Average Speed 157 | 157 309 321 239 245 250 224 135 40 40 39 37 37 37 48 Slowest Speed 750 | 160 320 680 317 250 250 250 750 40 40 50 37 37 112 150 Overloaded Moves . | . . . . . . . . . . . . . . . Propulsion Burnouts . | . . . . . . . . . . . . . . . Robots Hopped 1 | . . . . . . . . . . 1 . . . . Potential Cave-ins . | . . . . . . . . . . . . . . . Cave-ins Triggered . | . . . . . . . . . . . . . . . Exploration Rate (%) 60 | 5 93 43 72 81 78 98 31 80 4 28 65 54 83 85 Regions Visited 14 Branch Regions 7 Pre-discovered Areas 6 | . . . . . . 4 . . . . 1 . . 1 Known Exits Taken 6 | . . . 1 . . . . . 1 1 1 1 1 . Unknown Exits Taken 5 | 1 1 1 . . 1 1 . . . . . . . . Scrap Searched 14 | . . 6 . . . . . . . . 1 4 . 3 Spaces Dug 34 | . . 1 . 2 . 1 8 . . 12 3 2 . 5 Terrain Destroyed 136 | . . 20 26 19 . 1 48 . . 12 3 2 . 5 Melee 31 | . . . . . . 1 8 . . 12 3 2 . 5 Projectile 43 | . . 1 26 11 . . 5 . . . . . . . AOE 62 | . . 19 . 8 . . 35 . . . . . . . Terrain Rammed . | . . . . . . . . . . . . . . . Walls Destroyed . | . . . . . . . . . . . . . . . Machines Disabled . | . . . . . . . . . . . . . . . Actions | -11 -10 -10 -8 -8 -8 -8 -6 -6 -6 -5 -5 -5 -5 -4 --------- Run | Yrd Mat Sub Mat Gar Sto Rec Fac Was Fac Fac Upp Upp War Pro Total 9191 | 73 660 736 1092 756 594 752 1152 97 130 994 466 349 580 760 Wait 165 | . 15 5 31 8 15 17 41 . . 8 13 . . 12 Move 8061 | 56 573 639 830 606 463 703 960 96 129 937 443 346 576 704 Hop 1 | . . . . . . . . . . 1 . . . . Pick Up 111 | 8 21 6 39 4 11 6 9 . 1 4 2 . . . Fast Attach 27 | 5 . . 3 . 1 . 9 . . 6 1 . . 2 Attach 55 | 2 . 5 13 9 2 1 18 1 . 2 1 . . 1 Detach 7 | . . . 2 1 1 . 3 . . . . . . . Swap 46 | . 4 6 8 6 6 4 8 . . . . 1 1 2 Drop 86 | . 5 2 38 2 10 8 12 . . 3 1 . 3 2 Fire 478 | 2 38 73 122 78 78 5 80 . . . . . . 2 Melee 70 | . . . . . . 2 10 . . 16 5 2 . 35 Ram . | . . . . . . . . . . . . . . . Kick . | . . . . . . . . . . . . . . . Crush 20 | . 4 . 5 . 7 2 2 . . . . . . . Escape Stasis 33 | . . . . 16 . . . . . 17 . . . . Rewire 30 | . . . . 26 . 4 . . . . . . . . Trap 1 | . . . 1 . . . . . . . . . . . Miscellaneous . | . . . . . . . . . . . . . . . Route ------- -11/Scrapyard -10/Materials (discovered 6 exits: [*Mat x3] / [*Min x2] / *Sub) -10/Subcaves (discovered 3 exits: *Mat x2 / *Rec) -8/Materials (discovered 2 exits: *Fac / Gar) -8/Garrison (discovered 3 exits: *Sto x3) -8/Storage (discovered 2 exits: *Fac / *Rec) -8/Recycling -6/Factory -6/Waste -6/Factory -5/Factory (discovered 2 exits: *Fac / *Upp) -5/Upper Caves -5/Upper Caves (discovered 2 exits: *Fac / *War) -5/Warlord -4/Proximity Caves History --------- Turn | Location | Event 38 | -11/Scrapyard | Discovered new exit (range 15) 113 | -11/Scrapyard | Entered Materials 315 | -10/Materials | Build established: Mutant 396 | -10/Materials | Discovered new exit (range 16) 807 | -10/Materials | Discovered new exit (range 13) 840 | -10/Materials | Discovered new exit (range 16) 1151 | -10/Materials | Discovered new exit (range 12) 1250 | -10/Materials | Discovered new exit (range 8) 1645 | -10/Materials | Discovered new exit (range 10) 2056 | -10/Materials | Entered Subcaves 2729 | -10/Subcaves | Shifting Twisted Machinery released Riot Gun 2758 | -10/Subcaves | Shifting Twisted Machinery released Piercing Trap 2919 | -10/Subcaves | Visited 4L-MR0's lab 2967 | -10/Subcaves | Found Powered Cannon 3086 | -10/Subcaves | Discovered new exit (range 15) 3200 | -10/Subcaves | Discovered new exit (range 12) 3211 | -10/Subcaves | Core integrity fell below 50% 3247 | -10/Subcaves | Lost 4 parts (1p1u2w) 3247 | -10/Subcaves | Learned location of 1 exit from Materials 3427 | -10/Subcaves | Shifting Twisted Machinery released Barrage Gun 3648 | -10/Subcaves | Shifting Twisted Machinery released Sub. Power Source 3740 | -10/Subcaves | Discovered new exit (range 8) 3755 | -10/Subcaves | Disturbed a concealed Subdweller 3918 | -10/Subcaves | Disturbed a concealed Subdweller 3937 | -10/Subcaves | Core integrity fell below 20% 4322 | -10/Subcaves | Entered Materials 4322 | -8/Materials | Evolved 4 slots: Propulsion x2, Utility x1, Weapon x1 4323 | -8/Materials | Identified exit to Factory 4733 | -8/Materials | Garrison activated, responded to threat 4782 | -8/Materials | Build established: Tank 5120 | -8/Materials | Central database locked down 5597 | -8/Materials | Build established: Scavenger-Tank 5994 | -8/Materials | Build established: Tank 6169 | -8/Materials | Attached Powered Cannon, gained temporary slot: Power 6464 | -8/Materials | Build established: Scavenger-Tank 6779 | -8/Materials | Identified exit to Garrison 6779 | -8/Materials | Entered Garrison 6851 | -8/Garrison | Triggered checkpoint 7170 | -8/Garrison | Destroyed 7 combat bots 7195 | -8/Garrison | Triggered checkpoint 7297 | -8/Garrison | Discovered new exit (range 12) 7373 | -8/Garrison | Triggered checkpoint 7473 | -8/Garrison | Build established: Tank 7648 | -8/Garrison | Lost 4 parts (2p2n) 7856 | -8/Garrison | Discovered new exit (range 12) 8407 | -8/Garrison | Triggered checkpoint 8472 | -8/Garrison | Discovered new exit (range 3) 8549 | -8/Garrison | Identified exit to Storage 8549 | -8/Garrison | Entered Storage 8949 | -8/Storage | First assault squad dispatched 9054 | -8/Storage | Garrison activated, responded to threat 9063 | -8/Storage | Core integrity fell below 50% 9132 | -8/Storage | Destroyed 8 combat bots 9298 | -8/Storage | Assisted by bots powering up and referring to "LRC-V3" 9338 | -8/Storage | Discovered exit to Factory (range 16) 9577 | -8/Storage | Build established: Commander-Tank 9932 | -8/Storage | Used back door to open Recycling access 9932 | -8/Storage | Discovered new exit (range 5) 9951 | -8/Storage | Entered Recycling 9951 | -8/Recycling | Accompanied by 10 allies 9952 | -8/Recycling | Met a Zionite searching for Scraptown 10032 | -8/Recycling | Lost 4 allies 11330 | -8/Recycling | Discovered new exit (range 13) 11467 | -8/Recycling | Found Prototype Device 11469 | -8/Recycling | Identified Scrap Engine 11503 | -8/Recycling | Entered Scraplab 11587 | -8/Recycling | Entered Factory 11587 | -6/Factory | Accompanied by 6 allies 11587 | -6/Factory | Evolved 4 slots: Power x1, Utility x3 11899 | -6/Factory | Build established: Commander-Skirmisher 12188 | -6/Factory | Garrison activated, responded to threat 12196 | -6/Factory | Lost 4 allies 12454 | -6/Factory | Build established: Skirmisher 12919 | -6/Factory | Cargo convoy interrupted 13047 | -6/Factory | Core integrity fell below 50% 13060 | -6/Factory | Core integrity fell below 20% 13086 | -6/Factory | Lost 28 parts (2p13n5u8w) 13219 | -6/Factory | Manually triggered Chute Trap 13219 | -6/Factory | Sucked down chute 13219 | -6/Factory | Entered Waste 13234 | -6/Waste | EMP discharged 13234 | -6/Waste | System corruption reached 10% 13243 | -6/Waste | Spotted C-40 Crusher 13243 | -6/Waste | Spotted C-40 Crusher 13246 | -6/Waste | Spotted C-40 Crusher 13251 | -6/Waste | Spotted C-40 Crusher 13251 | -6/Waste | Spotted C-40 Crusher 13253 | -6/Waste | Spotted C-40 Crusher 13255 | -6/Waste | Discovered new exit (range 10) 13258 | -6/Waste | Identified exit to Factory 13259 | -6/Waste | Build established: Mutant 13259 | -6/Waste | Entered Factory 13298 | -6/Factory | Discovered new exit (range 13) 13303 | -6/Factory | Identified exit to Factory 13312 | -6/Factory | Entered another Factory area 13312 | -5/Factory | Evolved 2 slots: Utility x2 13616 | -5/Factory | Discovered new exit (range 11) 13620 | -5/Factory | Identified exit to Factory 13651 | -5/Factory | Discovered new exit (range 9) 13654 | -5/Factory | Identified exit to Upper Caves 13752 | -5/Factory | Build established: Hacker-Mutant 13761 | -5/Factory | Entered Upper Caves 13767 | -5/Upper Caves | Met a Warlord Commander 13768 | -5/Upper Caves | Learned location of Warlord (-5) 13769 | -5/Upper Caves | Warlord Commander delivered Encrypted Comm Array 13773 | -5/Upper Caves | Found Encrypted Comm Array 13800 | -5/Upper Caves | Encountered a Warlord checkpoint 13951 | -5/Upper Caves | Discovered new exit (range 14) 13956 | -5/Upper Caves | Identified exit to Upper Caves 13956 | -5/Upper Caves | Entered another Upper Caves area 14001 | -5/Upper Caves | Discovered exit to Factory (range 12) 14029 | -5/Upper Caves | Identified exit to Warlord 14077 | -5/Upper Caves | Build established: Hacker-Gladiator 14085 | -5/Upper Caves | Encountered a Warlord checkpoint 14091 | -5/Upper Caves | Entered Warlord 14150 | -5/Warlord | Met Warlord 14175 | -5/Warlord | Warlord's base attacked by MAIN.C 14300 | -5/Warlord | Opened side exit 14308 | -5/Warlord | Discovered new exit (range 9) 14310 | -5/Warlord | Identified exit to Proximity Caves 14310 | -5/Warlord | Entered Proximity Caves 14581 | -4/Proximity Caves | Dug into a huge 0b10 base via an incomplete storage room 14630 | -4/Proximity Caves | Build established: Hacker-Mutant 14649 | -4/Proximity Caves | Core integrity fell below 50% 14677 | -4/Proximity Caves | Spotted B-86 Titan 14679 | -4/Proximity Caves | Core integrity fell below 20% 14688 | -4/Proximity Caves | Lost 8 parts (1p3n2u2w) 14762 | -4/Proximity Caves | Attracted the attention of an 0b10 outpost 14762 | -4/Proximity Caves | Destroyed by G-67 Veteran with Field Laser Last Messages --------------- 14655_ Acquired 2 matter. 14656_ U-05 Engineer lays Concrete. 14657_ Penetrated by Slug. 14657_ Magnetic Acceleration Cannon destroyed. 14658_ U-05 Engineer lays Concrete. 14663_ Slug penetrates Reinforced Barrier. 14663_ Hacking Suite severed. 14664_ Critical hit (Burn: +50). 14666_ Slug penetrates Reinforced Barrier. 14680_ Y-64 Sentinel: "UNAUTHORIZED DERELICT IN 0B10 PROXIMITY. ENGAGING." 14680_ Penetrated by Slug. 14749_ Searching scrap... 14749_ Found Adv. Drone Bay. 14749_ Found 43 Matter. 14761_ Core Analyzer destroyed. 14761_ S-27 Virus springs to life. 14762_ Y-72 Warden: "DETECTED UNIDENTIFIED DERELICT." 14762_ G-67 Veteran springs to life. Map ----- +----------------------------------------------------+ | ?## ##?????##### #??????###### #####???# | | ### ##????????## ## #??????# #???# | | # #?????????## #?###??????# ##??# | | #??????????# #???########% #??? | | #??????????# #?### + ##??? | | #??????????# ### + #???? | | ##????????## " ##### | | #??????### " | | ### #??????# + | | #?? ##?####### ## ### ##### | | ### #### ## ## ##?# #???? | | ## ## ### ##??# #???? | | # # ###??### ##???##### #####???? | | ## ##### ???????#####????????? #???????? | | ?# #??## ??????????????????????###???????? | | ## !#??# #?????????????????????????????????? | | %#??# #?###?????????????????????????????? | | ## ###?# ### ##????????????????????????????? | | # ### ## #????????????????????????????? | | ## ## ####?????????????????????????# | | ## #????????????????########## | | # ###+#### #???????????????## | | ## #? # # ##????????????### ######### | | ### #" s#Y ##??########## ##???????? | | #?# #"g / #### ##??????? | | ?# #" g/ @ ##?????? | | ?# #"s # # #?????# | | ####?# # #" # # # ####?## | | #?????# # ######## # ## ## ## | | ??????## #### ### # | | ??????## #?# #?## # | | ??#???## ??## ##?### | | ??# ### ##???###### ####?## # | | ??# #??????????# #####???## # # | | ??? #???????????# #??????## | | ??????# ##??????????# #?????## # # | | ??????# ##?????????# ####### ## | | ??????# ######???## ### | | ??????# ### #???# # | | ??????# #?## #???## #### ## | | ####??# ##??##### #????# | | #### #???????# #???## | | #???????# ##### ## #### | | ## ### #??????# ## #?## | | ### #?## #?????# #### #??## | | #?## #?### #?????####### ####??## #???? | | #??## ###????###???????????## ###??????####???? | | #???#####?????????????????????####???????????????? | | ?????????????????????????????????????????????????? | | ?????????????????????????????????????????????????? | +----------------------------------------------------+ Best States ------------- Heat Dissipation 50 Energy Generation 27 Energy Capacity 335 Matter Stores 300 Matter Capacity 300 Sight Range 22 Robot Scan Range 15 Terrain Scan Density 10 Armor Coverage 600 Weapon Shielding 66 Evasion (%) 62 Melee Accuracy 8 Core Analysis 6 Recoil Reduction 4 Kinecelleration 30 Offensive Hacking 24 Defensive Hacking 10 Item Schematics ----------------- Hcp. Storage Unit | -8/Recycling | Hacked Robot Schematics ------------------ None Fabricated ------------ Nothing Repaired ---------- Nothing Alien Tech Used ----------------- None Achievements -------------- None Challenges ------------ None Game ------ Seed StoragePlexusRefractor Manual? 0 Play Time 01:36:26 Cumulative 201.9 hours Start 2025.10.08 @ 20:01:26 End 2025.10.10 @ 09:12:21 Sessions 3 Manual Loads 0 Difficulty Rogue Special Mode None Game No. 251 Rogue 251 Adventurer 0 Explorer 0 Win Type - Total 3 Types 3/0/0/0/0/0/0/0/0/0 Lore% 71 Gallery% 56 Achievement% 55 Wizard Run 0 Options --------- Layout 1 ASCII 0 Keyboard 1 Movement Numpad Keybinds 0 Fullscreen 2 Font 24/Smallcaps Map View 50x35 Zoom Use 0% Tactical HUD 1 Map Filters NONE Filters NONE Steam 1 RUN: 52361ac0-a021-44c5-ad03-64e6630eea92